fUST/lending_fUST_20250917
["ID","MTS","AMOUNT","RATE_DAILY","PERIOD"]
[385832511,1758058246194,-652.36,0.00022465,3]
[385832513,1758058246203,-480.0,0.00022465,3]
[385832515,1758058246212,-480.0,0.00022465,3]
[385832516,1758058246221,-480.0,0.00022465,3]
[385832518,1758058246231,-480.0,0.00022465,3]
[385832521,1758058246240,-480.0,0.00022465,3]
[385832523,1758058246249,-480.0,0.00022465,3]
[385832525,1758058246258,-480.0,0.00022465,3]
[385832526,1758058246268,-581.78503146,0.00022465,3]
[385832528,1758058246277,-480.0,0.00022465,3]
[385832530,1758058246287,-480.0,0.00022465,3]
[385832532,1758058246296,-480.0,0.00022465,3]
[385832534,1758058246305,-480.0,0.00022465,3]
[385832536,1758058246314,-480.0,0.00022465,3]
[385832538,1758058246323,-480.0,0.00022465,3]
[385832540,1758058246332,-480.0,0.00022465,3]
[385832543,1758058246343,-587.02381165,0.00022465,3]
[385832545,1758058246352,-480.0,0.00022465,3]
[385832547,1758058246361,-480.0,0.00022465,3]
[385832549,1758058246370,-402.88369012,0.00022465,3]
[385832551,1758058246380,-480.0,0.00022465,3]
[385832553,1758058246389,-480.0,0.00022465,3]
[385832555,1758058246398,-480.0,0.00022465,3]
[385832557,1758058246408,-480.0,0.00022465,3]
[385832559,1758058246418,-739.37,0.00022465,3]
[385832561,1758058246427,-480.0,0.00022465,3]
[385832563,1758058246436,-480.0,0.00022465,3]
[385832565,1758058246445,-480.0,0.00022465,3]
[385832567,1758058246454,-480.0,0.00022465,3]
[385832569,1758058246464,-480.0,0.00022465,3]
[385832571,1758058246473,-480.0,0.00022465,3]
[385832573,1758058246483,-480.0,0.00022465,3]
[385832575,1758058246492,-480.0,0.00022465,3]
[385832577,1758058246501,-480.0,0.00022465,3]
[385832579,1758058246510,-757.44,0.00022465,3]
[385832581,1758058246519,-480.0,0.00022465,3]
[385832582,1758058246529,-480.0,0.00022465,3]
[385832585,1758058246539,-1146.66,0.00022465,3]
[385832587,1758058246548,-480.0,0.00022465,3]
[385832589,1758058246558,-480.0,0.00022465,3]
[385832591,1758058246567,-480.0,0.00022465,3]
[385832593,1758058246576,-859.2,0.00022465,3]
[385832595,1758058246586,-480.0,0.00022465,3]
[385832597,1758058246595,-480.0,0.00022465,3]
[385832599,1758058246604,-480.0,0.00022465,3]
[385832601,1758058246613,-480.0,0.00022465,3]
[385832603,1758058246622,-480.0,0.00022465,3]
[385832605,1758058246632,-480.0,0.00022465,3]
[385832607,1758058246641,-480.0,0.00022465,3]
[385832609,1758058246651,-588.82,0.00022465,3]
[385832611,1758058246660,-480.0,0.00022465,3]
[385832613,1758058246669,-2207.31,0.00022465,3]
[385832615,1758058246678,-480.0,0.00022465,3]
[385832616,1758058246688,-480.0,0.00022465,3]
[385832618,1758058246697,-480.0,0.00022465,3]
[385832620,1758058246706,-480.0,0.00022465,3]
[385832622,1758058246715,-575.92,0.00022465,3]
[385832624,1758058246725,-480.0,0.00022465,3]
[385832625,1758058246734,-480.0,0.00022465,3]
[385832627,1758058246743,-932.15,0.00022465,3]
[385832629,1758058246753,-480.0,0.00022465,3]
[385832631,1758058246762,-480.0,0.00022465,3]
[385832633,1758058246771,-480.0,0.00022465,3]
[385832635,1758058246780,-361.84150081,0.00022465,3]
[385832637,1758058246789,-480.0,0.00022465,3]
[385832639,1758058246799,-480.0,0.00022465,3]
[385832640,1758058246808,-480.0,0.00022465,3]
[385832642,1758058246817,-480.0,0.00022465,3]
[385832644,1758058246826,-480.0,0.00022465,3]
[385832646,1758058246836,-480.0,0.00022465,3]
[385832648,1758058246845,-480.0,0.00022465,3]
[385832650,1758058246854,-480.0,0.00022465,3]
[385832652,1758058246863,-480.0,0.00022465,3]
[385832653,1758058246874,-480.0,0.00022465,3]
[385832655,1758058246885,-159.94285149,0.00022465,3]
[385832657,1758058246894,-480.0,0.00022465,3]
[385832659,1758058246903,-1129.29,0.00022465,3]
[385832661,1758058246912,-480.0,0.00022465,3]
[385832663,1758058246922,-480.0,0.00022465,3]
[385832665,1758058246932,-1005.25,0.00022465,3]
[385832667,1758058246941,-877.89,0.00022465,3]
[385832669,1758058246952,-4272.36,0.00022465,3]
[385832670,1758058246961,-568.82,0.00022465,3]
[385832672,1758058246970,-480.0,0.00022465,3]
[385832674,1758058246980,-480.0,0.00022465,3]
[385832676,1758058246989,-1790.96,0.00022465,3]
[385832678,1758058246998,-480.0,0.00022465,3]
[385832680,1758058247008,-480.0,0.00022465,3]
[385832682,1758058247017,-553.21,0.00022465,3]
[385832683,1758058247026,-480.0,0.00022465,3]
[385832685,1758058247035,-2191.19,0.00022465,3]
[385832687,1758058247044,-480.0,0.00022465,3]
[385832689,1758058247054,-480.0,0.00022465,3]
[385832691,1758058247063,-480.0,0.00022465,3]
[385832693,1758058247072,-480.0,0.00022465,3]
[385832694,1758058247082,-480.0,0.00022465,3]
[385832696,1758058247091,-480.0,0.00022465,3]
[385832698,1758058247100,-480.0,0.00022465,3]
[385832700,1758058247109,-2445.62,0.00022465,3]
[385832702,1758058247121,-480.0,0.00022465,3]
[385832704,1758058247130,-480.0,0.00022465,3]
[385832706,1758058247140,-480.0,0.00022465,3]
[385832707,1758058247150,-673.7,0.00022465,3]
[385832709,1758058247159,-480.0,0.00022465,3]
[385832711,1758058247168,-480.0,0.00022465,3]
[385832713,1758058247177,-480.0,0.00022465,3]
[385832715,1758058247186,-523.01098783,0.00022465,3]
[385832717,1758058247196,-4198.35,0.00022465,3]
[385832718,1758058247205,-480.0,0.00022465,3]
[385832720,1758058247215,-480.0,0.00022465,3]
[385832722,1758058247224,-480.0,0.00022465,3]
[385832724,1758058247233,-480.0,0.00022465,3]
[385832726,1758058247243,-480.0,0.00022465,3]
[385832727,1758058247252,-382.8430005,0.00022465,3]
[385832729,1758058247261,-683.31,0.00022465,3]
[385832731,1758058247270,-1125.17,0.00022465,3]
[385832733,1758058247279,-716.81,0.00022465,3]
[385832735,1758058247289,-480.0,0.00022465,3]
[385832737,1758058247297,-480.0,0.00022465,3]
[385832739,1758058247307,-1051.6,0.00022465,3]
[385832740,1758058247316,-2266.22,0.00022465,3]
[385832742,1758058247325,-480.0,0.00022465,3]
[385832744,1758058247334,-266.93,0.00022465,3]
[385832746,1758058247343,-480.0,0.00022465,3]
[385832748,1758058247352,-771.29,0.00022465,3]
[385832750,1758058247361,-921.43,0.00022465,3]
[385832752,1758058247371,-480.0,0.00022465,3]
[385832754,1758058247380,-2736.43,0.00022465,3]
[385832755,1758058247389,-480.0,0.00022465,3]
[385832764,1758058247469,-480.0,0.00022465,3]
[385832767,1758058247486,-480.0,0.00022465,3]
[385832769,1758058247496,-480.0,0.00022465,3]
[385832771,1758058247505,-857.9,0.00022465,3]
[385832773,1758058247514,-1435.48,0.00022465,3]
[385832774,1758058247523,-3193.25,0.00022465,3]
[385832777,1758058247532,-480.0,0.00022465,3]
[385832778,1758058247542,-480.0,0.00022465,3]
[385832780,1758058247551,-480.0,0.00022465,3]
[385832782,1758058247560,-480.0,0.00022465,3]
[385832784,1758058247569,-4124.67,0.00022465,3]
[385832786,1758058247578,-782.93,0.00022465,3]
[385832788,1758058247588,-480.0,0.00022465,3]
[385832790,1758058247598,-480.0,0.00022465,3]
[385832791,1758058247606,-717.8,0.00022465,3]
[385832793,1758058247616,-480.0,0.00022465,3]
[385832795,1758058247625,-480.0,0.00022465,3]
[385832797,1758058247634,-480.0,0.00022465,3]
[385832799,1758058247643,-480.0,0.00022465,3]
[385832801,1758058247652,-480.0,0.00022465,3]
[385832803,1758058247661,-1063.88,0.00022465,3]
[385832805,1758058247670,-480.0,0.00022465,3]
[385832806,1758058247679,-480.0,0.00022465,3]
[385832808,1758058247688,-815.65,0.00022465,3]
[385832810,1758058247697,-480.0,0.00022465,3]
[385832812,1758058247706,-480.0,0.00022465,3]
[385832814,1758058247715,-480.0,0.00022465,3]
[385832816,1758058247724,-480.0,0.00022465,3]
[385832818,1758058247733,-480.0,0.00022465,3]
[385832820,1758058247742,-637.59,0.00022465,3]
[385832821,1758058247751,-480.0,0.00022465,3]
[385832823,1758058247760,-480.0,0.00022465,3]
[385832825,1758058247769,-480.0,0.00022465,3]
[385832827,1758058247778,-866.41,0.00022465,3]
[385832829,1758058247787,-1118.25,0.00022465,3]
[385832831,1758058247796,-5783.91,0.00022465,3]
[385832833,1758058247805,-480.0,0.00022465,3]
[385832835,1758058247814,-480.0,0.00022465,3]
[385832837,1758058247823,-480.0,0.00022465,3]
[385832839,1758058247832,-480.0,0.00022465,3]
[385832840,1758058247840,-214.53795094,0.00022465,3]
[385832842,1758058247849,-480.0,0.00022465,3]
[385832844,1758058247858,-20720.4,0.00022465,3]
[385832846,1758058247867,-11132.22,0.00022465,3]
[385832848,1758058247879,-1875.19,0.00022465,3]
[385832850,1758058247889,-480.0,0.00022465,3]
[385832852,1758058247898,-480.0,0.00022465,3]
[385832854,1758058247907,-480.0,0.00022465,3]
[385832856,1758058247915,-607.69,0.00022465,3]
[385832858,1758058247924,-480.0,0.00022465,3]
[385832860,1758058247934,-480.0,0.00022465,3]
[385832862,1758058247943,-480.0,0.00022465,3]
[385832863,1758058247952,-480.0,0.00022465,3]
[385832865,1758058247962,-732.37,0.00022465,3]
[385832867,1758058247970,-480.0,0.00022465,3]
[385832869,1758058247979,-480.0,0.00022465,3]
[385832871,1758058247988,-480.0,0.00022465,3]
[385832873,1758058247997,-2293.05,0.00022465,3]
[385832875,1758058248006,-1438.87,0.00022465,3]
[385832877,1758058248015,-805.62,0.00022465,3]
[385832878,1758058248023,-480.0,0.00022465,3]
[385832880,1758058248033,-480.0,0.00022465,3]
[385832882,1758058248042,-1155.75,0.00022465,3]
[385832884,1758058248051,-480.0,0.00022465,3]
[385832886,1758058248060,-1919.94,0.00022465,3]
[385832888,1758058248069,-979.01,0.00022465,3]
[385832890,1758058248078,-1029.27,0.00022465,3]
[385832892,1758058248087,-480.0,0.00022465,3]
[385832894,1758058248096,-480.0,0.00022465,3]
[385832896,1758058248105,-480.0,0.00022465,3]
[385832898,1758058248115,-480.0,0.00022465,3]
[385832900,1758058248124,-2512.04,0.00022465,3]
[385832901,1758058248134,-480.0,0.00022465,3]
[385832903,1758058248143,-480.0,0.00022465,3]
[385832905,1758058248152,-2337.78,0.00022465,3]
[385832907,1758058248161,-1124.2,0.00022465,3]
[385832909,1758058248170,-480.0,0.00022465,3]
[385832911,1758058248179,-4896.51,0.00022465,3]
[385832913,1758058248190,-1320.86,0.00022465,3]
[385832915,1758058248199,-480.0,0.00022465,3]
[385832917,1758058248208,-1830.54,0.00022465,2]
[385832919,1758058248218,-480.0,0.00022465,3]
[385832920,1758058248227,-480.0,0.00022465,3]
[385832922,1758058248236,-689.12,0.00022465,3]
[385832924,1758058248246,-480.0,0.00022465,3]
[385832926,1758058248255,-480.0,0.00022465,3]
[385832928,1758058248264,-491.67563584,0.00022465,3]
[385832930,1758058248274,-1000.0,0.00022521,2]
[385832932,1758058248283,-1000.0,0.00022521,2]
[385832934,1758058248291,-1000.0,0.00022521,2]
[385832936,1758058248300,-1019.63847923,0.00022521,2]
[385832937,1758058248310,-1000.0,0.00022521,2]
[385832939,1758058248319,-252.0,0.00022525,2]
[385832941,1758058248328,-600.0,0.00022619,2]
[385832943,1758058248337,-1397.6572281,0.00022646,2]
[385832945,1758058248346,-500.01876604,0.00022721,2]
[385832947,1758058248355,-1000.0,0.00022721,2]
[385832949,1758058248364,-1000.0,0.00022721,2]
[385832951,1758058248373,-1000.0,0.00022721,2]
[385832953,1758058248382,-315.44323192,0.00022734,2]
[385832955,1758058248392,-252.0,0.00022737,2]
[385832957,1758058248400,-349.1521239,0.00022739,3]
[385832959,1758058248409,-480.0,0.00022739,3]
[385832960,1758058248418,-540.38,0.00022739,3]
[385832962,1758058248427,-507.81,0.00022739,3]
[385832964,1758058248436,-480.0,0.00022739,3]
[385832966,1758058248445,-480.0,0.00022739,3]
[385832968,1758058248455,-480.0,0.00022739,3]
[385832970,1758058248464,-480.0,0.00022739,3]
[385832972,1758058248473,-480.0,0.00022739,3]
[385832974,1758058248482,-480.0,0.00022739,3]
[385832976,1758058248491,-480.0,0.00022739,3]
[385832978,1758058248502,-480.0,0.00022739,3]
[385832980,1758058248512,-480.0,0.00022739,3]
[385832981,1758058248521,-480.0,0.00022739,3]
[385832983,1758058248530,-480.0,0.00022739,3]
[385832985,1758058248540,-480.0,0.00022739,3]
[385832987,1758058248549,-480.0,0.00022739,3]
[385832989,1758058248558,-480.0,0.00022739,3]
[385832991,1758058248567,-480.0,0.00022739,3]
[385832993,1758058248576,-480.0,0.00022739,3]
[385832995,1758058248585,-480.0,0.00022739,3]
[385832997,1758058248594,-480.0,0.00022739,3]
[385832999,1758058248604,-480.0,0.00022739,3]
[385833001,1758058248613,-480.0,0.00022739,3]
[385833002,1758058248622,-480.0,0.00022739,3]
[385833004,1758058248632,-480.0,0.00022739,3]
[385833006,1758058248641,-608.64715097,0.00022739,3]
[385833008,1758058248650,-187.1,0.00022739,3]
[385833010,1758058248659,-518.46,0.00022739,3]
[385833012,1758058248668,-480.0,0.00022739,3]
[385833014,1758058248677,-480.0,0.00022739,3]
[385833016,1758058248687,-480.0,0.00022739,3]
[385833018,1758058248696,-480.0,0.00022739,3]
[385833020,1758058248705,-480.0,0.00022739,3]
[385833022,1758058248714,-1325.44,0.00022739,3]
[385833024,1758058248724,-480.0,0.00022739,3]
[385833026,1758058248733,-480.0,0.00022739,3]
[385833027,1758058248742,-480.0,0.00022739,3]
[385833029,1758058248752,-505.72,0.00022739,3]
[385833031,1758058248761,-480.0,0.00022739,3]
[385833033,1758058248770,-480.0,0.00022739,3]
[385833035,1758058248779,-536.1,0.00022739,3]
[385833037,1758058248788,-480.0,0.00022739,3]
[385833039,1758058248798,-480.0,0.00022739,3]
[385833041,1758058248808,-313.70585856,0.00022739,3]
[385833043,1758058248818,-480.0,0.00022739,3]
[385833045,1758058248827,-480.0,0.00022739,3]
[385833047,1758058248836,-1918.31,0.00022739,3]
[385833049,1758058248845,-480.0,0.00022739,3]
[385833051,1758058248855,-480.0,0.00022739,3]
[385833052,1758058248864,-480.0,0.00022739,3]
[385833054,1758058248875,-480.0,0.00022739,3]
[385833056,1758058248885,-877.7,0.00022739,3]
[385833058,1758058248894,-480.0,0.00022739,3]
[385833060,1758058248904,-480.0,0.00022739,3]
[385833062,1758058248913,-487.04,0.00022739,3]
[385833064,1758058248922,-1035.57,0.00022739,3]
[385833066,1758058248932,-480.0,0.00022739,3]
[385833067,1758058248944,-652.36,0.00022739,3]
[385833069,1758058248954,-480.0,0.00022739,3]
[385833071,1758058248963,-480.0,0.00022739,3]
[385833073,1758058248973,-427.43314972,0.00022739,3]
[385833075,1758058248983,-480.0,0.00022739,3]
[385833077,1758058248993,-480.0,0.00022739,3]
[385833079,1758058249003,-480.0,0.00022739,3]
[385833081,1758058249012,-480.0,0.00022739,3]
[385833083,1758058249022,-480.0,0.00022739,3]
[385833085,1758058249031,-480.0,0.00022739,3]
[385833087,1758058249040,-480.0,0.00022739,3]
[385833089,1758058249050,-480.0,0.00022739,3]
[385833098,1758058249137,-480.0,0.00022739,3]
[385833100,1758058249147,-480.0,0.00022739,3]
[385833102,1758058249157,-480.0,0.00022739,3]
[385833104,1758058249166,-480.0,0.00022739,3]
[385833106,1758058249175,-480.0,0.00022739,3]
[385833108,1758058249186,-480.0,0.00022739,3]
[385833110,1758058249195,-480.0,0.00022739,3]
[385833112,1758058249204,-739.37,0.00022739,3]
[385833113,1758058249213,-480.0,0.00022739,3]
[385833115,1758058249222,-480.0,0.00022739,3]
[385833117,1758058249232,-480.0,0.00022739,3]
[385833119,1758058249241,-480.0,0.00022739,3]
[385833121,1758058249250,-480.0,0.00022739,3]
[385833123,1758058249259,-480.0,0.00022739,3]
[385833125,1758058249268,-480.0,0.00022739,3]
[385833127,1758058249278,-480.0,0.00022739,3]
[385833129,1758058249286,-480.0,0.00022739,3]
[385833131,1758058249296,-757.44,0.00022739,3]
[385833133,1758058249305,-480.0,0.00022739,3]
[385833134,1758058249314,-480.0,0.00022739,3]
[385833136,1758058249323,-1146.66,0.00022739,3]
[385833138,1758058249332,-480.0,0.00022739,3]
[385833140,1758058249342,-480.0,0.00022739,3]
[385833142,1758058249351,-480.0,0.00022739,3]
[385833144,1758058249361,-859.2,0.00022739,3]
[385833146,1758058249370,-480.0,0.00022739,3]
[385833148,1758058249379,-480.0,0.00022739,3]
[385833150,1758058249389,-480.0,0.00022739,3]
[385833152,1758058249398,-480.0,0.00022739,3]
[385833154,1758058249407,-480.0,0.00022739,3]
[385833156,1758058249415,-480.0,0.00022739,3]
[385833157,1758058249425,-588.82,0.00022739,3]
[385833159,1758058249434,-480.0,0.00022739,3]
[385833161,1758058249444,-2207.31,0.00022739,3]
[385833163,1758058249453,-480.0,0.00022739,3]
[385833165,1758058249462,-480.0,0.00022739,3]
[385833167,1758058249471,-480.0,0.00022739,3]
[385833169,1758058249480,-480.0,0.00022739,3]
[385833171,1758058249489,-575.92,0.00022739,3]
[385833173,1758058249499,-480.0,0.00022739,3]
[385833175,1758058249508,-480.0,0.00022739,3]
[385833177,1758058249517,-500.0,0.00022739,2]
[385833179,1758058249526,-932.15,0.00022739,3]
[385833181,1758058249536,-151.0,0.00022739,2]
[385833183,1758058249545,-480.0,0.00022739,3]
[385833185,1758058249554,-151.0,0.00022739,2]
[385833186,1758058249563,-500.0,0.00022739,2]
[385833188,1758058249572,-480.0,0.00022739,3]
[385833190,1758058249581,-480.0,0.00022739,3]
[385833192,1758058249590,-480.0,0.00022739,3]
[385833194,1758058249599,-480.0,0.00022739,3]
[385833196,1758058249608,-480.0,0.00022739,3]
[385833198,1758058249618,-402.96766967,0.00022739,3]
[385833200,1758058249627,-480.0,0.00022739,3]
[385833202,1758058249636,-480.0,0.00022739,3]
[385833204,1758058249645,-480.0,0.00022739,3]
[385833206,1758058249654,-480.0,0.00022739,3]
[385833208,1758058249664,-480.0,0.00022739,3]
[385833210,1758058249672,-480.0,0.00022739,3]
[385833211,1758058249681,-1129.29,0.00022739,3]
[385833213,1758058249690,-480.0,0.00022739,3]
[385833215,1758058249700,-480.0,0.00022739,3]
[385833217,1758058249709,-498.51529996,0.00022739,3]
[385833219,1758058249718,-1005.25,0.00022739,3]
[385833221,1758058249727,-877.89,0.00022739,3]
[385833223,1758058249737,-4272.36,0.00022739,3]
[385833225,1758058249746,-568.82,0.00022739,3]
[385833227,1758058249754,-480.0,0.00022739,3]
[385833229,1758058249763,-480.0,0.00022739,3]
[385833231,1758058249773,-1790.96,0.00022739,3]
[385833233,1758058249782,-480.0,0.00022739,3]
[385833235,1758058249791,-480.0,0.00022739,3]
[385833237,1758058249800,-553.21,0.00022739,3]
[385833238,1758058249810,-480.0,0.00022739,3]
[385833240,1758058249820,-2191.19,0.00022739,3]
[385833242,1758058249829,-480.0,0.00022739,3]
[385833244,1758058249838,-480.0,0.00022739,3]
[385833246,1758058249847,-480.0,0.00022739,3]
[385833248,1758058249856,-480.0,0.00022739,3]
[385833249,1758058249865,-480.0,0.00022739,3]
[385833250,1758058249878,-480.0,0.00022739,3]
[385833251,1758058249888,-480.0,0.00022739,3]
[385833252,1758058249896,-480.0,0.00022739,3]
[385833253,1758058249906,-2445.62,0.00022739,3]
[385833254,1758058249914,-480.0,0.00022739,3]
[385833255,1758058249923,-480.0,0.00022739,3]
[385833256,1758058249931,-673.7,0.00022739,3]
[385833257,1758058249940,-480.0,0.00022739,3]
[385833258,1758058249949,-480.0,0.00022739,3]
[385833259,1758058249958,-480.0,0.00022739,3]
[385833260,1758058249967,-4198.35,0.00022739,3]
[385833261,1758058249976,-480.0,0.00022739,3]
[385833262,1758058249985,-480.0,0.00022739,3]
[385833263,1758058249994,-480.0,0.00022739,3]
[385833264,1758058250004,-480.0,0.00022739,3]
[385833265,1758058250013,-480.0,0.00022739,3]
[385833266,1758058250022,-683.31,0.00022739,3]
[385833267,1758058250031,-1125.17,0.00022739,3]
[385833268,1758058250040,-716.81,0.00022739,3]
[385833269,1758058250049,-480.0,0.00022739,3]
[385833270,1758058250058,-480.0,0.00022739,3]
[385833271,1758058250067,-1051.6,0.00022739,3]
[385833272,1758058250076,-2266.22,0.00022739,3]
[385833273,1758058250085,-480.0,0.00022739,3]
[385833274,1758058250094,-771.29,0.00022739,3]
[385833275,1758058250102,-921.43,0.00022739,3]
[385833276,1758058250112,-480.0,0.00022739,3]
[385833277,1758058250121,-2736.43,0.00022739,3]
[385833278,1758058250130,-480.0,0.00022739,3]
[385833279,1758058250138,-480.0,0.00022739,3]
[385833280,1758058250147,-480.0,0.00022739,3]
[385833281,1758058250157,-857.9,0.00022739,3]
[385833282,1758058250166,-1435.48,0.00022739,3]
[385833283,1758058250175,-3193.25,0.00022739,3]
[385833284,1758058250184,-151.0,0.00022739,2]
[385833285,1758058250194,-480.0,0.00022739,3]
[385833286,1758058250203,-480.0,0.00022739,3]
[385833288,1758058250212,-217.38090722,0.00022739,2]
[385833289,1758058250222,-480.0,0.00022739,3]
[385833291,1758058250231,-480.0,0.00022739,3]
[385833293,1758058250240,-500.0,0.00022739,2]
[385833295,1758058250249,-151.0,0.00022739,2]
[385833297,1758058250258,-151.0,0.00022739,2]
[385833299,1758058250267,-4124.67,0.00022739,3]
[385833301,1758058250276,-181.0,0.00022739,2]
[385833303,1758058250285,-782.93,0.00022739,3]
[385833305,1758058250294,-480.0,0.00022739,3]
[385833307,1758058250304,-151.0,0.00022739,2]
[385833309,1758058250313,-480.0,0.00022739,3]
[385833311,1758058250322,-717.8,0.00022739,3]
[385833313,1758058250331,-151.0,0.00022739,2]
[385833315,1758058250340,-500.0,0.00022739,2]
[385833317,1758058250350,-480.0,0.00022739,3]
[385833319,1758058250359,-480.0,0.00022739,3]
[385833321,1758058250368,-551.52590848,0.00022739,3]
[385833323,1758058250378,-356.66637305,0.00022739,3]
[385833325,1758058250386,-480.0,0.00022739,3]
[385833327,1758058250395,-1063.88,0.00022739,3]
[385833329,1758058250405,-480.0,0.00022739,3]
[385833331,1758058250413,-480.0,0.00022739,3]
[385833333,1758058250422,-815.65,0.00022739,3]
[385833335,1758058250431,-480.0,0.00022739,3]
[385833337,1758058250440,-480.0,0.00022739,3]
[385833339,1758058250450,-480.0,0.00022739,3]
[385833341,1758058250459,-480.0,0.00022739,3]
[385833343,1758058250468,-480.0,0.00022739,3]
[385833345,1758058250477,-480.0,0.00022739,3]
[385833347,1758058250486,-637.59,0.00022739,3]
[385833349,1758058250495,-480.0,0.00022739,3]
[385833351,1758058250504,-480.0,0.00022739,3]
[385833353,1758058250513,-866.41,0.00022739,3]
[385833355,1758058250522,-1118.25,0.00022739,3]
[385833357,1758058250531,-5783.91,0.00022739,3]
[385833359,1758058250540,-480.0,0.00022739,3]
[385833361,1758058250549,-480.0,0.00022739,3]
[385833363,1758058250558,-480.0,0.00022739,3]
[385833365,1758058250569,-480.0,0.00022739,3]
[385833375,1758058250648,-480.0,0.00022739,3]
[385833377,1758058250658,-20720.4,0.00022739,3]
[385833379,1758058250667,-11132.22,0.00022739,3]
[385833381,1758058250676,-1875.19,0.00022739,3]
[385833383,1758058250685,-480.0,0.00022739,3]
[385833385,1758058250694,-480.0,0.00022739,3]
[385833387,1758058250703,-607.69,0.00022739,3]
[385833389,1758058250712,-480.0,0.00022739,3]
[385833391,1758058250721,-480.0,0.00022739,3]
[385833393,1758058250732,-480.0,0.00022739,3]
[385833395,1758058250742,-480.0,0.00022739,3]
[385833396,1758058250751,-732.37,0.00022739,3]
[385833399,1758058250761,-480.0,0.00022739,3]
[385833400,1758058250770,-480.0,0.00022739,3]
[385833402,1758058250779,-2293.05,0.00022739,3]
[385833404,1758058250789,-1438.87,0.00022739,3]
[385833406,1758058250800,-805.62,0.00022739,3]
[385833408,1758058250810,-480.0,0.00022739,3]
[385833410,1758058250821,-480.0,0.00022739,3]
[385833412,1758058250831,-1155.75,0.00022739,3]
[385833414,1758058250841,-480.0,0.00022739,3]
[385833416,1758058250850,-1919.94,0.00022739,3]
[385833418,1758058250859,-979.01,0.00022739,3]
[385833420,1758058250869,-1029.27,0.00022739,3]
[385833422,1758058250882,-480.0,0.00022739,3]
[385833424,1758058250891,-480.0,0.00022739,3]
[385833427,1758058250901,-831.0,0.00022739,2]
[385833428,1758058250910,-480.0,0.00022739,3]
[385833430,1758058250920,-480.0,0.00022739,3]
[385833432,1758058250929,-2512.04,0.00022739,3]
[385833434,1758058250939,-480.0,0.00022739,3]
[385833436,1758058250948,-480.0,0.00022739,3]
[385833438,1758058250958,-2337.78,0.00022739,3]
[385833440,1758058250966,-1124.2,0.00022739,3]
[385833442,1758058250975,-480.0,0.00022739,3]
[385833444,1758058250985,-4896.51,0.00022739,3]
[385833446,1758058250994,-1320.86,0.00022739,3]
[385833448,1758058251003,-480.0,0.00022739,3]
[385833450,1758058251013,-1830.54,0.00022739,2]
[385833452,1758058251023,-480.0,0.00022739,3]
[385833455,1758058251032,-480.0,0.00022739,3]
[385833456,1758058251041,-689.12,0.00022739,3]
[385833458,1758058251050,-480.0,0.00022739,3]